[Event "*** Titled Tuesday Blitz"]
[Site "Chess.com"]
[Date "2021.03.09"]
[Round "6"]
[White "alexrustemov"]
[Black "andriipalchuk"]
[Result "0-1"]
[WhiteElo "2754"]
[BlackElo "2587"]
[TimeControl "180+1"]
[EndTime "11:11:23 PST"]
[Termination "andriipalchuk won on time"]

1. d4 {[%clk 0:03:00.9]} 1... Nf6 {[%clk 0:02:58.5]} 2. Nf3 {[%clk 0:03:00.5]}
2... d5 {[%clk 0:02:57.6]} 3. c4 {[%clk 0:02:59.9]} 3... c6 {[%clk 0:02:57.3]}
4. e3 {[%clk 0:02:57.6]} 4... e6 {[%clk 0:02:56.4]} 5. Nc3 {[%clk 0:02:55.8]}
5... Nbd7 {[%clk 0:02:56.1]} 6. Qc2 {[%clk 0:02:56.1]} 6... Bd6 {[%clk
0:02:55.3]} 7. Bd2 {[%clk 0:02:56.4]} 7... dxc4 {[%clk 0:02:45.5]} 8. Bxc4
{[%clk 0:02:55.4]} 8... b5 {[%clk 0:02:46.1]} 9. Bd3 {[%clk 0:02:54.9]} 9... Bb7
{[%clk 0:02:46.7]} 10. a3 {[%clk 0:02:33.1]} 10... Rc8 {[%clk 0:02:37.5]} 11. b4
{[%clk 0:02:32.3]} 11... e5 {[%clk 0:02:30.5]} 12. O-O {[%clk 0:02:28]} 12...
O-O {[%clk 0:02:24.8]} 13. Ne4 {[%clk 0:02:05.5]} 13... Nxe4 {[%clk 0:02:16.4]}
14. Bxe4 {[%clk 0:02:06.4]} 14... f5 {[%clk 0:02:16.5]} 15. Bxf5 {[%clk
0:02:04.8]} 15... exd4 {[%clk 0:02:11.9]} 16. Bxh7+ {[%clk 0:01:52.1]} 16... Kh8
{[%clk 0:02:10.3]} 17. Bf5 {[%clk 0:01:45.2]} 17... c5 {[%clk 0:02:07]} 18. Be4
{[%clk 0:01:17.3]} 18... cxb4 {[%clk 0:01:32]} 19. Qb1 {[%clk 0:01:15.5]} 19...
Bxe4 {[%clk 0:01:25.1]} 20. Qxe4 {[%clk 0:01:16.4]} 20... Nc5 {[%clk 0:01:08.9]}
21. Qg6 {[%clk 0:00:58.6]} 21... Rf6 {[%clk 0:01:05.8]} 22. Qh5+ {[%clk
0:00:43.9]} 22... Rh6 {[%clk 0:01:05.1]} 23. Qg4 {[%clk 0:00:40.5]} 23... Nb3
{[%clk 0:01:00]} 24. axb4 {[%clk 0:00:22.2]} 24... Nxd2 {[%clk 0:00:53.9]} 25.
Rfd1 {[%clk 0:00:15.9]} 25... Nxf3+ {[%clk 0:00:49.8]} 26. Qxf3 {[%clk
0:00:16.8]} 26... d3 {[%clk 0:00:43.7]} 27. g3 {[%clk 0:00:15.9]} 27... Qf6
{[%clk 0:00:30.9]} 28. Qxf6 {[%clk 0:00:14.1]} 28... Rxf6 {[%clk 0:00:31.8]} 29.
Rxd3 {[%clk 0:00:13.7]} 29... Bxb4 {[%clk 0:00:20.5]} 30. Rxa7 {[%clk
0:00:14.1]} 30... Rc1+ {[%clk 0:00:21.2]} 31. Kg2 {[%clk 0:00:14.5]} 31... Rc2
{[%clk 0:00:22.1]} 32. Rdd7 {[%clk 0:00:14.3]} 32... Rcxf2+ {[%clk 0:00:21.4]}
33. Kh3 {[%clk 0:00:15]} 33... Bc3 {[%clk 0:00:15.4]} 34. Rab7 {[%clk
0:00:09.7]} 34... b4 {[%clk 0:00:14.8]} 35. e4 {[%clk 0:00:06.7]} 35... Rh6+
{[%clk 0:00:14.3]} 36. Kg4 {[%clk 0:00:06.8]} 36... Rfxh2 {[%clk 0:00:14.9]} 37.
Rd8+ {[%clk 0:00:06]} 37... Kh7 {[%clk 0:00:15]} 38. Rbb8 {[%clk 0:00:06.5]}
38... R2h5 {[%clk 0:00:07.1]} 39. Rh8+ {[%clk 0:00:05.6]} 39... Kg6 {[%clk
0:00:07.7]} 40. Rhg8 {[%clk 0:00:03.4]} 40... Rg5+ {[%clk 0:00:06.9]} 41. Kf3
{[%clk 0:00:03.5]} 41... Rxg3+ {[%clk 0:00:07.5]} 42. Kxg3 {[%clk 0:00:02.7]}
42... Be5+ {[%clk 0:00:07.7]} 43. Kg4 {[%clk 0:00:02.9]} 43... Bxb8 {[%clk
0:00:07.6]} 44. Rxb8 {[%clk 0:00:03.7]} 44... Kh7 {[%clk 0:00:06.5]} 45. Rxb4
{[%clk 0:00:03.1]} 45... Rf6 {[%clk 0:00:06.9]} 46. e5 {[%clk 0:00:02.9]} 46...
Rf8 {[%clk 0:00:07.3]} 0-1

[Event "*** Titled Tuesday Blitz"]
[Site "Chess.com"]
[Date "2021.03.09"]
[Round "6"]
[White "Vugar_Manafov"]
[Black "Natalya_Buksa"]
[Result "1-0"]
[WhiteElo "2678"]
[BlackElo "2536"]
[TimeControl "180+1"]
[EndTime "11:11:24 PST"]
[Termination "Vugar_Manafov won on time"]

1. Nf3 {[%clk 0:03:00.9]} 1... d5 {[%clk 0:02:59.6]} 2. g3 {[%clk 0:03:00.2]}
2... g6 {[%clk 0:02:54.5]} 3. Bg2 {[%clk 0:03:00.2]} 3... Bg7 {[%clk 0:02:55]}
4. O-O {[%clk 0:03:00.4]} 4... e5 {[%clk 0:02:55.2]} 5. d3 {[%clk 0:03:00.3]}
5... Ne7 {[%clk 0:02:54.1]} 6. e4 {[%clk 0:02:59.3]} 6... Nbc6 {[%clk
0:02:40.4]} 7. Nc3 {[%clk 0:02:57.6]} 7... dxe4 {[%clk 0:02:37.8]} 8. dxe4
{[%clk 0:02:57.9]} 8... O-O {[%clk 0:02:38.1]} 9. Qxd8 {[%clk 0:02:51.2]} 9...
Rxd8 {[%clk 0:02:37.5]} 10. Be3 {[%clk 0:02:27.3]} 10... a6 {[%clk 0:02:26]} 11.
Rad1 {[%clk 0:02:19.5]} 11... Bg4 {[%clk 0:02:25.3]} 12. h3 {[%clk 0:01:46.6]}
12... Bxf3 {[%clk 0:02:08.9]} 13. Bxf3 {[%clk 0:01:47.5]} 13... Nd4 {[%clk
0:02:09.7]} 14. Bxd4 {[%clk 0:01:45.6]} 14... exd4 {[%clk 0:01:47.7]} 15. Ne2
{[%clk 0:01:40]} 15... c5 {[%clk 0:01:44.3]} 16. Bg2 {[%clk 0:01:34.1]} 16...
Nc6 {[%clk 0:01:39.8]} 17. a3 {[%clk 0:01:29.6]} 17... d3 {[%clk 0:01:23.2]} 18.
Rxd3 {[%clk 0:01:19.8]} 18... Rxd3 {[%clk 0:01:22]} 19. cxd3 {[%clk 0:01:20.4]}
19... Bxb2 {[%clk 0:01:22.6]} 20. Rb1 {[%clk 0:01:20.4]} 20... Bxa3 {[%clk
0:01:22.6]} 21. Rxb7 {[%clk 0:01:21.3]} 21... Rd8 {[%clk 0:01:17.9]} 22. Nf4
{[%clk 0:01:19.4]} 22... Nb4 {[%clk 0:01:14.8]} 23. Ra7 {[%clk 0:01:11.5]} 23...
Nxd3 {[%clk 0:01:04.6]} 24. Nxd3 {[%clk 0:01:02.3]} 24... Rxd3 {[%clk 0:01:04]}
25. Rxa6 {[%clk 0:01:02.6]} 25... Bb2 {[%clk 0:00:57.4]} 26. Bf1 {[%clk
0:00:58.8]} 26... Rd1 {[%clk 0:00:51.5]} 27. Kg2 {[%clk 0:00:51.3]} 27... Bd4
{[%clk 0:00:51.6]} 28. Ra2 {[%clk 0:00:51.4]} 28... Rc1 {[%clk 0:00:47.7]} 29.
h4 {[%clk 0:00:44.4]} 29... h5 {[%clk 0:00:41.2]} 30. Bb5 {[%clk 0:00:37.6]}
30... Kg7 {[%clk 0:00:34.6]} 31. Be8 {[%clk 0:00:28.8]} 31... Kf8 {[%clk
0:00:33.7]} 32. Bb5 {[%clk 0:00:25.8]} 32... Bf6 {[%clk 0:00:19.7]} 33. Ra7
{[%clk 0:00:19.2]} 33... c4 {[%clk 0:00:17.4]} 34. Bc6 {[%clk 0:00:18.1]} 34...
c3 {[%clk 0:00:16.2]} 35. Bd5 {[%clk 0:00:17.4]} 35... c2 {[%clk 0:00:11.1]} 36.
Rxf7+ {[%clk 0:00:15.4]} 36... Ke8 {[%clk 0:00:11]} 37. Rc7 {[%clk 0:00:14.4]}
37... Be5 {[%clk 0:00:10.9]} 38. Rc4 {[%clk 0:00:13.1]} 38... Kd7 {[%clk
0:00:07.5]} 39. Bc6+ {[%clk 0:00:13]} 39... Kd6 {[%clk 0:00:04.5]} 40. Ba4
{[%clk 0:00:13.1]} 40... Rd1 {[%clk 0:00:01.9]} 41. Bxc2 {[%clk 0:00:12.7]}
41... Rd2 {[%clk 0:00:02.4]} 42. Kf1 {[%clk 0:00:08.1]} 42... Bd4 {[%clk
0:00:01.5]} 43. Ke1 {[%clk 0:00:08.7]} 1-0

[Event "*** Titled Tuesday Blitz"]
[Site "Chess.com"]
[Date "2021.03.09"]
[Round "6"]
[White "Gulkov_Igor"]
[Black "SHIVACalypso"]
[Result "1-0"]
[WhiteElo "2531"]
[BlackElo "2365"]
[TimeControl "180+1"]
[EndTime "11:11:30 PST"]
[Termination "Gulkov_Igor won on time"]

1. Nf3 {[%clk 0:03:00.9]} 1... Nf6 {[%clk 0:02:59.8]} 2. c4 {[%clk 0:03:00.1]}
2... e6 {[%clk 0:03:00]} 3. Nc3 {[%clk 0:03:00.2]} 3... d5 {[%clk 0:02:56.1]} 4.
d4 {[%clk 0:02:59.6]} 4... Bb4 {[%clk 0:02:54.3]} 5. Bg5 {[%clk 0:02:58.7]} 5...
h6 {[%clk 0:02:53.3]} 6. Bxf6 {[%clk 0:02:58.6]} 6... Qxf6 {[%clk 0:02:54.2]} 7.
e3 {[%clk 0:02:58.7]} 7... O-O {[%clk 0:02:49.5]} 8. Be2 {[%clk 0:02:57.9]} 8...
Nd7 {[%clk 0:02:43.4]} 9. O-O {[%clk 0:02:54.6]} 9... dxc4 {[%clk 0:02:42.3]}
10. Bxc4 {[%clk 0:02:51.9]} 10... Bxc3 {[%clk 0:02:42.1]} 11. bxc3 {[%clk
0:02:51.3]} 11... e5 {[%clk 0:02:41.5]} 12. Qc2 {[%clk 0:02:45.8]} 12... c6
{[%clk 0:02:37.2]} 13. a4 {[%clk 0:02:23]} 13... exd4 {[%clk 0:02:35.5]} 14.
cxd4 {[%clk 0:02:22.3]} 14... Nb6 {[%clk 0:02:10.6]} 15. Ne5 {[%clk 0:01:51]}
15... Be6 {[%clk 0:01:49]} 16. Bxe6 {[%clk 0:01:46.3]} 16... Qxe6 {[%clk
0:01:49.9]} 17. Rfb1 {[%clk 0:01:37.3]} 17... Rab8 {[%clk 0:01:38.5]} 18. a5
{[%clk 0:01:24.2]} 18... Nd5 {[%clk 0:01:35.5]} 19. a6 {[%clk 0:01:18.9]} 19...
bxa6 {[%clk 0:01:30.5]} 20. Qxc6 {[%clk 0:01:16.3]} 20... Qxc6 {[%clk
0:01:22.7]} 21. Nxc6 {[%clk 0:01:15.6]} 21... Rxb1+ {[%clk 0:01:23.6]} 22. Rxb1
{[%clk 0:01:15.2]} 22... Rc8 {[%clk 0:01:16.3]} 23. Na5 {[%clk 0:01:05]} 23...
Rc2 {[%clk 0:01:12.9]} 24. Nb3 {[%clk 0:00:57.9]} 24... Nb4 {[%clk 0:01:04.6]}
25. Nc5 {[%clk 0:00:55.2]} 25... a5 {[%clk 0:01:03.3]} 26. Ra1 {[%clk
0:00:51.9]} 26... Nc6 {[%clk 0:00:53.4]} 27. g3 {[%clk 0:00:47.4]} 27... g5
{[%clk 0:00:50.7]} 28. Nb3 {[%clk 0:00:44.1]} 28... Nb4 {[%clk 0:00:45.3]} 29.
Rxa5 {[%clk 0:00:40.3]} 29... Nd3 {[%clk 0:00:43.6]} 30. Rf5 {[%clk 0:00:30.7]}
30... Kg7 {[%clk 0:00:34.7]} 31. Nc5 {[%clk 0:00:29.7]} 31... Nxc5 {[%clk
0:00:20.8]} 32. dxc5 {[%clk 0:00:29.4]} 32... a5 {[%clk 0:00:19.7]} 33. c6
{[%clk 0:00:23.8]} 33... Rxc6 {[%clk 0:00:18.9]} 34. Rxa5 {[%clk 0:00:23.7]}
34... Re6 {[%clk 0:00:17.6]} 35. g4 {[%clk 0:00:23.9]} 35... Kg6 {[%clk
0:00:13.1]} 36. h3 {[%clk 0:00:24.2]} 36... f6 {[%clk 0:00:10.9]} 37. Kg2 {[%clk
0:00:24.6]} 37... h5 {[%clk 0:00:11.2]} 38. gxh5+ {[%clk 0:00:22.4]} 38... Kxh5
{[%clk 0:00:12.1]} 39. Kg3 {[%clk 0:00:22.8]} 39... Kg6 {[%clk 0:00:11.9]} 40.
h4 {[%clk 0:00:23.2]} 40... Rb6 {[%clk 0:00:12.4]} 41. hxg5 {[%clk 0:00:23.3]}
41... fxg5 {[%clk 0:00:12.1]} 42. f3 {[%clk 0:00:23.7]} 42... Rb3 {[%clk
0:00:11.7]} 43. e4 {[%clk 0:00:23.8]} 43... Rc3 {[%clk 0:00:11.4]} 44. Kg4
{[%clk 0:00:24]} 44... Kf6 {[%clk 0:00:07.1]} 45. Rf5+ {[%clk 0:00:22.9]} 45...
Ke6 {[%clk 0:00:05.7]} 46. Kxg5 {[%clk 0:00:22.8]} 46... Rc1 {[%clk 0:00:05.5]}
47. Kf4 {[%clk 0:00:23.1]} 47... Rg1 {[%clk 0:00:05.6]} 48. Rg5 {[%clk
0:00:21.5]} 48... Rh1 {[%clk 0:00:05.1]} 49. Rg6+ {[%clk 0:00:21.9]} 49... Kf7
{[%clk 0:00:05.7]} 50. Ra6 {[%clk 0:00:21.7]} 50... Rb1 {[%clk 0:00:04.5]} 51.
Kf5 {[%clk 0:00:20.8]} 51... Rb2 {[%clk 0:00:04.2]} 52. f4 {[%clk 0:00:20.5]}
52... Rb4 {[%clk 0:00:03.8]} 53. e5 {[%clk 0:00:20.8]} 53... Kf8 {[%clk
0:00:03.6]} 54. Ra7 {[%clk 0:00:20.2]} 54... Rb6 {[%clk 0:00:03.2]} 55. e6
{[%clk 0:00:19.9]} 1-0

[Event "*** Titled Tuesday Blitz"]
[Site "Chess.com"]
[Date "2021.03.09"]
[Round "6"]
[White "olksuna"]
[Black "Atco84"]
[Result "1-0"]
[WhiteElo "2664"]
[BlackElo "2436"]
[TimeControl "180+1"]
[EndTime "11:11:31 PST"]
[Termination "olksuna won by resignation"]

1. e4 {[%clk 0:03:00.9]} 1... c5 {[%clk 0:02:59.9]} 2. Nf3 {[%clk 0:03:01]} 2...
d6 {[%clk 0:03:00.1]} 3. d4 {[%clk 0:03:01.3]} 3... cxd4 {[%clk 0:03:00.3]} 4.
Nxd4 {[%clk 0:03:02.2]} 4... Nf6 {[%clk 0:03:00.5]} 5. Nc3 {[%clk 0:03:02.5]}
5... a6 {[%clk 0:03:01]} 6. Be2 {[%clk 0:03:02.7]} 6... e6 {[%clk 0:03:00.6]} 7.
O-O {[%clk 0:03:01.9]} 7... Be7 {[%clk 0:03:00.7]} 8. f4 {[%clk 0:03:01.6]} 8...
O-O {[%clk 0:02:57.4]} 9. Kh1 {[%clk 0:03:01.6]} 9... Qc7 {[%clk 0:02:56.1]} 10.
Be3 {[%clk 0:02:56.6]} 10... Re8 {[%clk 0:02:46]} 11. Qe1 {[%clk 0:02:52.3]}
11... Nbd7 {[%clk 0:02:35.8]} 12. Qg3 {[%clk 0:02:49.1]} 12... b5 {[%clk
0:02:33.8]} 13. a3 {[%clk 0:02:20.3]} 13... Bb7 {[%clk 0:02:30.8]} 14. Bd3
{[%clk 0:02:20]} 14... Rac8 {[%clk 0:02:23.7]} 15. Rae1 {[%clk 0:02:08.3]} 15...
Bf8 {[%clk 0:01:57.4]} 16. Nf3 {[%clk 0:02:00.2]} 16... e5 {[%clk 0:01:53.5]}
17. fxe5 {[%clk 0:01:52.8]} 17... dxe5 {[%clk 0:01:41.4]} 18. Nh4 {[%clk
0:01:50.8]} 18... g6 {[%clk 0:01:36.8]} 19. Nf5 {[%clk 0:01:48.4]} 19... Nh5
{[%clk 0:01:28]} 20. Qh4 {[%clk 0:01:35.2]} 20... Nf4 {[%clk 0:01:15.6]} 21.
Nh6+ {[%clk 0:01:23.1]} 21... Bxh6 {[%clk 0:00:59.5]} 22. Qxh6 {[%clk
0:01:20.5]} 22... Nf6 {[%clk 0:00:46.7]} 23. Bxf4 {[%clk 0:00:58.1]} 23... exf4
{[%clk 0:00:47.6]} 24. Rxf4 {[%clk 0:00:55.8]} 24... Nh5 {[%clk 0:00:39.6]} 25.
Rf2 {[%clk 0:00:46.7]} 25... Qe5 {[%clk 0:00:30.6]} 26. Ref1 {[%clk 0:00:45.3]}
26... Rc7 {[%clk 0:00:27.6]} 27. Qe3 {[%clk 0:00:28.2]} 27... Rce7 {[%clk
0:00:26]} 28. Qb6 {[%clk 0:00:22.5]} 28... Ng7 {[%clk 0:00:25.5]} 29. Qf6 {[%clk
0:00:21]} 29... Qxf6 {[%clk 0:00:23.9]} 30. Rxf6 {[%clk 0:00:21.9]} 30... Ne6
{[%clk 0:00:22.6]} 31. Nd5 {[%clk 0:00:21.1]} 31... Bxd5 {[%clk 0:00:22.7]} 32.
exd5 {[%clk 0:00:22]} 32... Nc5 {[%clk 0:00:23.4]} 33. d6 {[%clk 0:00:20.2]}
33... Rd7 {[%clk 0:00:23.9]} 34. h3 {[%clk 0:00:14.3]} 34... Kg7 {[%clk
0:00:21.2]} 35. Kh2 {[%clk 0:00:12.1]} 35... Re6 {[%clk 0:00:21]} 36. Rxe6
{[%clk 0:00:10.1]} 36... Nxe6 {[%clk 0:00:21.9]} 37. a4 {[%clk 0:00:09.1]} 37...
bxa4 {[%clk 0:00:20.5]} 38. Bxa6 {[%clk 0:00:08.4]} 38... Rxd6 {[%clk 0:00:21]}
39. Bb5 {[%clk 0:00:08.9]} 39... Rd2 {[%clk 0:00:15.1]} 40. Bxa4 {[%clk
0:00:07.7]} 40... g5 {[%clk 0:00:15.7]} 41. Rc1 {[%clk 0:00:03.6]} 41... Nf4
{[%clk 0:00:15.2]} 42. Bc6 {[%clk 0:00:03.7]} 42... h5 {[%clk 0:00:14.8]} 43. b4
{[%clk 0:00:03.8]} 43... Kf6 {[%clk 0:00:14.8]} 44. b5 {[%clk 0:00:04.1]} 44...
Ke5 {[%clk 0:00:15.7]} 45. b6 {[%clk 0:00:04.5]} 45... Kd6 {[%clk 0:00:16.6]}
46. b7 {[%clk 0:00:04.9]} 46... Kc7 {[%clk 0:00:17.1]} 47. Rb1 {[%clk
0:00:05.4]} 47... Kb8 {[%clk 0:00:17.4]} 48. Be4 {[%clk 0:00:06.3]} 48... f5
{[%clk 0:00:16.2]} 49. Bxf5 {[%clk 0:00:05]} 49... Rxg2+ {[%clk 0:00:15.4]} 50.
Kh1 {[%clk 0:00:05.4]} 50... Rd2 {[%clk 0:00:15.4]} 51. Be4 {[%clk 0:00:05.5]}
51... Rd4 {[%clk 0:00:14]} 52. Bf3 {[%clk 0:00:04.2]} 52... Nxh3 {[%clk
0:00:14.3]} 53. Ra1 {[%clk 0:00:04.7]} 53... Rb4 {[%clk 0:00:14]} 54. Ra8+
{[%clk 0:00:05.6]} 54... Kc7 {[%clk 0:00:14.7]} 55. Rc8+ {[%clk 0:00:05.6]}
55... Kd7 {[%clk 0:00:15.1]} 56. b8=Q {[%clk 0:00:06.5]} 1-0

[Event "*** Titled Tuesday Blitz"]
[Site "Chess.com"]
[Date "2021.03.09"]
[Round "6"]
[White "m_ezat"]
[Black "DFeco"]
[Result "1-0"]
[WhiteElo "2542"]
[BlackElo "2294"]
[TimeControl "180+1"]
[EndTime "11:11:32 PST"]
[Termination "m_ezat won on time"]

1. d4 {[%clk 0:03:00.3]} 1... d5 {[%clk 0:02:59]} 2. Nf3 {[%clk 0:02:58.5]} 2...
Nf6 {[%clk 0:02:58.4]} 3. e3 {[%clk 0:02:57.7]} 3... c5 {[%clk 0:02:55.2]} 4.
Bd3 {[%clk 0:02:57.1]} 4... Nc6 {[%clk 0:02:53.7]} 5. O-O {[%clk 0:02:56.6]}
5... Bg4 {[%clk 0:02:53.4]} 6. c3 {[%clk 0:02:55]} 6... e6 {[%clk 0:02:51.2]} 7.
Nbd2 {[%clk 0:02:55.1]} 7... Bd6 {[%clk 0:02:47.3]} 8. h3 {[%clk 0:02:54.7]}
8... Bh5 {[%clk 0:02:46.7]} 9. Qc2 {[%clk 0:02:46.9]} 9... c4 {[%clk 0:02:41.1]}
10. Be2 {[%clk 0:02:46.1]} 10... O-O {[%clk 0:02:41]} 11. Qd1 {[%clk 0:02:25.5]}
11... b5 {[%clk 0:02:33.6]} 12. e4 {[%clk 0:02:16.3]} 12... dxe4 {[%clk
0:02:21.5]} 13. Ng5 {[%clk 0:02:15.1]} 13... Bg6 {[%clk 0:02:13.5]} 14. f3
{[%clk 0:02:04.9]} 14... e3 {[%clk 0:02:03.1]} 15. Nde4 {[%clk 0:02:04.1]} 15...
Bf4 {[%clk 0:01:45.6]} 16. h4 {[%clk 0:01:49.9]} 16... Nxe4 {[%clk 0:01:30.5]}
17. fxe4 {[%clk 0:01:45.4]} 17... Bxg5 {[%clk 0:01:26.3]} 18. hxg5 {[%clk
0:01:44.7]} 18... Qxg5 {[%clk 0:01:25.9]} 19. Bf3 {[%clk 0:01:38.1]} 19... Rad8
{[%clk 0:01:15.1]} 20. Qe2 {[%clk 0:01:37.6]} 20... e5 {[%clk 0:01:07.5]} 21.
Bxe3 {[%clk 0:01:34.8]} 21... Qe7 {[%clk 0:00:55.6]} 22. d5 {[%clk 0:01:32.3]}
22... Nb8 {[%clk 0:00:55.2]} 23. a4 {[%clk 0:01:32.1]} 23... a6 {[%clk
0:00:40.8]} 24. axb5 {[%clk 0:01:32]} 24... axb5 {[%clk 0:00:40.7]} 25. Ra5
{[%clk 0:01:23.8]} 25... f5 {[%clk 0:00:39.3]} 26. exf5 {[%clk 0:01:12.3]} 26...
Bxf5 {[%clk 0:00:38.7]} 27. Rxb5 {[%clk 0:01:09]} 27... e4 {[%clk 0:00:37.9]}
28. Bc5 {[%clk 0:01:06.8]} 28... Qd7 {[%clk 0:00:37.6]} 29. Rxb8 {[%clk
0:00:52.7]} 29... Rxb8 {[%clk 0:00:21.5]} 30. Bxf8 {[%clk 0:00:51.9]} 30... exf3
{[%clk 0:00:18.6]} 31. Qxf3 {[%clk 0:00:51.4]} 31... Rxf8 {[%clk 0:00:18.3]} 32.
g4 {[%clk 0:00:47.9]} 32... g6 {[%clk 0:00:13.2]} 33. gxf5 {[%clk 0:00:41.5]}
33... Rxf5 {[%clk 0:00:12.9]} 34. Qe4 {[%clk 0:00:38.4]} 34... Rg5+ {[%clk
0:00:11.5]} 35. Kh2 {[%clk 0:00:20.4]} 35... Rxd5 {[%clk 0:00:11]} 36. Qxc4
{[%clk 0:00:18.9]} 36... Qd6+ {[%clk 0:00:10.1]} 37. Kg2 {[%clk 0:00:18.2]}
37... Kg7 {[%clk 0:00:09.6]} 38. Qf4 {[%clk 0:00:16.8]} 38... Rd2+ {[%clk
0:00:08.4]} 39. Kg3 {[%clk 0:00:13.7]} 39... Rd3+ {[%clk 0:00:07.2]} 40. Kg2
{[%clk 0:00:13.1]} 40... Rd2+ {[%clk 0:00:07.3]} 41. Kg3 {[%clk 0:00:13.2]}
41... Qxf4+ {[%clk 0:00:05.7]} 42. Kxf4 {[%clk 0:00:13.1]} 42... Rxb2 {[%clk
0:00:06.2]} 43. Rc1 {[%clk 0:00:13.7]} 43... Rb5 {[%clk 0:00:05.1]} 44. c4
{[%clk 0:00:13]} 44... Rc5 {[%clk 0:00:05.6]} 45. Ke4 {[%clk 0:00:13.3]} 45...
Kf6 {[%clk 0:00:03.6]} 46. Kd4 {[%clk 0:00:13.8]} 46... Rc8 {[%clk 0:00:03.8]}
47. Kd5 {[%clk 0:00:12.6]} 47... Ke7 {[%clk 0:00:03.5]} 48. c5 {[%clk
0:00:12.1]} 48... Kd7 {[%clk 0:00:03.2]} 49. c6+ {[%clk 0:00:12]} 49... Kc7
{[%clk 0:00:02.9]} 50. Rf1 {[%clk 0:00:12.5]} 50... Rd8+ {[%clk 0:00:02.2]} 51.
Kc5 {[%clk 0:00:13.1]} 1-0

[Event "*** Titled Tuesday Blitz"]
[Site "Chess.com"]
[Date "2021.03.09"]
[Round "6"]
[White "GM_LOADING"]
[Black "samidescalona2002"]
[Result "1-0"]
[WhiteElo "2549"]
[BlackElo "2296"]
[TimeControl "180+1"]
[EndTime "11:11:33 PST"]
[Termination "GM_LOADING won on time"]

1. d4 {[%clk 0:02:54.5]} 1... g6 {[%clk 0:02:59.8]} 2. Nf3 {[%clk 0:02:52.6]}
2... Bg7 {[%clk 0:03:00.1]} 3. Bg5 {[%clk 0:02:49.4]} 3... d6 {[%clk 0:02:59.9]}
4. c3 {[%clk 0:02:46.6]} 4... Nf6 {[%clk 0:02:59.7]} 5. Nbd2 {[%clk 0:02:45.4]}
5... h6 {[%clk 0:02:59.9]} 6. Bh4 {[%clk 0:02:38.9]} 6... g5 {[%clk 0:02:59.8]}
7. Bg3 {[%clk 0:02:38.9]} 7... Nh5 {[%clk 0:03:00.1]} 8. e4 {[%clk 0:02:37.9]}
8... e6 {[%clk 0:02:59.5]} 9. Bd3 {[%clk 0:02:35.4]} 9... a6 {[%clk 0:02:59.1]}
10. Nc4 {[%clk 0:02:35.3]} 10... b5 {[%clk 0:02:44.8]} 11. Ne3 {[%clk
0:02:34.9]} 11... Bb7 {[%clk 0:02:43.5]} 12. a4 {[%clk 0:02:17.1]} 12... Nxg3
{[%clk 0:02:40.9]} 13. hxg3 {[%clk 0:02:16.8]} 13... bxa4 {[%clk 0:02:38.4]} 14.
Rxa4 {[%clk 0:02:10.8]} 14... Nd7 {[%clk 0:02:37.5]} 15. O-O {[%clk 0:02:09.2]}
15... O-O {[%clk 0:02:30.1]} 16. Ra1 {[%clk 0:02:04.5]} 16... c5 {[%clk
0:02:25]} 17. d5 {[%clk 0:02:04.6]} 17... Qe7 {[%clk 0:02:17.4]} 18. Bc4 {[%clk
0:01:53.2]} 18... Nb6 {[%clk 0:02:13.8]} 19. Qd3 {[%clk 0:01:52.4]} 19... Nxc4
{[%clk 0:02:06.1]} 20. Nxc4 {[%clk 0:01:48.1]} 20... exd5 {[%clk 0:01:49.9]} 21.
exd5 {[%clk 0:01:49]} 21... Qc7 {[%clk 0:01:46]} 22. Na5 {[%clk 0:01:44.8]}
22... Bc8 {[%clk 0:01:42.9]} 23. Nd2 {[%clk 0:01:42.3]} 23... Bd7 {[%clk
0:01:41.3]} 24. Rfe1 {[%clk 0:01:35]} 24... Bb5 {[%clk 0:01:36.2]} 25. Qf3
{[%clk 0:01:23.6]} 25... Rfe8 {[%clk 0:01:30.3]} 26. Nc6 {[%clk 0:01:22.3]}
26... Bxc6 {[%clk 0:01:12]} 27. dxc6 {[%clk 0:01:23.2]} 27... d5 {[%clk
0:01:12.6]} 28. Rxe8+ {[%clk 0:01:18.6]} 28... Rxe8 {[%clk 0:01:12.6]} 29. Rxa6
{[%clk 0:01:19.1]} 29... Rd8 {[%clk 0:00:37.3]} 30. Nb3 {[%clk 0:01:15.2]} 30...
Bf8 {[%clk 0:00:28.8]} 31. Na5 {[%clk 0:01:05.7]} 31... Kg7 {[%clk 0:00:22.6]}
32. Nb7 {[%clk 0:01:04.7]} 32... Re8 {[%clk 0:00:14.8]} 33. Qxd5 {[%clk
0:01:03.2]} 33... Re1+ {[%clk 0:00:14.7]} 34. Kh2 {[%clk 0:01:03.3]} 34... g4
{[%clk 0:00:14.4]} 35. Nd8 {[%clk 0:00:39.4]} 35... Bd6 {[%clk 0:00:09.6]} 36.
Ra8 {[%clk 0:00:31.1]} 36... Qe7 {[%clk 0:00:08.8]} 37. Qh5 {[%clk 0:00:23]}
37... f5 {[%clk 0:00:08.2]} 38. c7 {[%clk 0:00:10.9]} 38... Bxc7 {[%clk
0:00:07.2]} 39. Nc6 {[%clk 0:00:11.1]} 39... Qf7 {[%clk 0:00:05.5]} 40. Qxf7+
{[%clk 0:00:10.5]} 40... Kxf7 {[%clk 0:00:06.4]} 41. Ra7 {[%clk 0:00:11.2]}
41... Rb1 {[%clk 0:00:05.5]} 42. Rxc7+ {[%clk 0:00:11.5]} 42... Ke6 {[%clk
0:00:06.4]} 43. Rb7 {[%clk 0:00:11.2]} 43... Kd6 {[%clk 0:00:04.4]} 44. Ne7
{[%clk 0:00:11.3]} 44... Ke5 {[%clk 0:00:03.5]} 45. b4 {[%clk 0:00:11.2]} 45...
cxb4 {[%clk 0:00:02.6]} 46. cxb4 {[%clk 0:00:11.2]} 46... Rb2 {[%clk 0:00:03.5]}
47. Ng6+ {[%clk 0:00:10.2]} 47... Ke6 {[%clk 0:00:03.2]} 48. Nf4+ {[%clk
0:00:10.4]} 48... Kd6 {[%clk 0:00:03.8]} 49. b5 {[%clk 0:00:10.9]} 49... Rxf2
{[%clk 0:00:03.5]} 50. Rh7 {[%clk 0:00:11.5]} 50... Rb2 {[%clk 0:00:01.8]} 51.
Rxh6+ {[%clk 0:00:11.8]} 51... Ke5 {[%clk 0:00:02.4]} 52. b6 {[%clk 0:00:12.1]}
1-0